bitfinex-derivatives/quotes_ETHF0:USTF0_20250110
["timestamp","ask_amount","ask_price","bid_price","bid_amount"]
[1736530810628,0.30524,3276.7,3276.6,0.30522]
[1736530810828,0.3052,3277.0,3276.9,0.30521]
[1736530811031,0.30522,3276.8,3276.7,0.30523]
[1736530811329,0.30522,3276.9,3276.7,0.30522]
[1736530811531,3.51299,3277.2,3276.6,3.9709]
[1736530811730,0.4408,3277.5,3276.8,2.36162454]
[1736530811922,3.2078,3277.6,3276.6,3.2078]
[1736530811923,3.51295,3277.6,3277.5,0.30515]
[1736530812123,3.2078,3277.6,3277.5,0.30515]
[1736530812526,3.51294,3277.6,3277.5,0.30515]
[1736530812729,0.4441,3278.0,3277.5,0.30515]
[1736530812927,0.4388,3278.1,3278.0,0.3051]
[1736530812928,3.2078,3278.1,3278.0,0.3051]
[1736530813128,3.5129,3278.1,3278.0,0.3051]
[1736530813430,0.30512,3277.9,3277.8,0.30512]
[1736530813625,0.30511,3278.0,3277.9,0.3051]
[1736530813831,3.5129,3278.1,3278.0,0.3051]
[1736530814131,0.4388,3278.4,3278.2,0.30508]
[1736530814132,0.30508,3278.3,3278.2,0.30508]
[1736530814522,0.30508,3278.3,3277.8,3.9706]
[1736530814523,0.30506,3278.5,3278.4,0.30507]
[1736530814729,3.2078,3278.6,3278.5,0.30506]
[1736530815027,3.2078,3279.3,3278.3,2.36162454]
[1736530815231,0.30499,3279.3,3279.1,0.305]
[1736530815531,13.05977557,3279.4,3279.3,0.30498]
[1736530815839,0.77296,3279.6,3279.3,0.30498]
[1736530816023,0.30497,3279.5,3279.2,40.8]
[1736530816228,0.468,3279.6,3279.2,40.8]
[1736530816229,0.30498,3279.4,3279.2,41.10499]
[1736530816727,0.30498,3279.4,3279.2,40.8]
[1736530817329,2.82962454,3279.6,3278.9,0.30502]
[1736530817529,3.2078,3279.4,3278.6,3.2078]
[1736530817732,0.76247,3279.3,3278.4,0.9352]
[1736530817929,5.56942454,3279.0,3277.9,0.4579]
[1736530818238,0.3051,3278.1,3277.8,3.51292]
[1736530818429,0.3051,3278.1,3277.9,0.30511]
[1736530818829,0.4693,3278.5,3277.9,0.30511]
[1736530819033,0.4693,3278.5,3277.8,3.2078]
[1736530819237,0.30511,3278.0,3277.8,3.51292]
[1736530819634,0.4693,3278.5,3277.8,3.2078]
[1736530819836,0.3051,3278.1,3277.9,0.30511]
[1736530820442,0.4693,3278.5,3277.5,0.4579]
[1736530820739,3.2078,3278.2,3277.5,0.4579]
[1736530820942,0.30515,3277.5,3277.4,44.31296]
[1736530821133,4.43105,3278.1,3277.4,40.8]
[1736530821332,3.2078,3278.1,3277.4,41.56289]
[1736530821533,3.2078,3278.1,3278.0,0.3051]
[1736530821736,0.30511,3278.0,3277.9,0.30511]
[1736530822134,0.30511,3278.0,3277.4,40.8]
[1736530822341,3.2078,3278.1,3277.9,0.30511]
[1736530822342,3.5129,3278.1,3277.9,0.30511]
[1736530822637,0.3051,3278.0,3277.9,0.30511]
[1736530822838,3.5129,3278.1,3277.9,0.30511]
[1736530823241,0.4693,3278.5,3277.4,40.8]
[1736530823442,0.30507,3278.4,3277.9,0.30511]
[1736530823643,0.30509,3278.2,3278.0,0.3051]
[1736530824042,0.3051,3278.1,3277.9,0.30511]
[1736530825044,0.4693,3278.5,3277.4,40.8]
[1736530825240,0.4693,3278.5,3277.5,0.76288]
[1736530825440,0.30509,3278.3,3277.8,0.30512]
[1736530825643,0.30509,3278.3,3278.0,0.3051]
[1736530825844,0.4693,3278.5,3277.7,3.6424]
[1736530826046,0.4693,3278.5,3278.4,0.30507]
[1736530826241,3.2078,3279.0,3278.3,0.7627]
[1736530826548,3.2078,3279.0,3278.2,3.2078]
[1736530826549,0.30504,3278.8,3278.6,0.30504]
[1736530826735,3.2078,3279.0,3278.4,40.8]
[1736530826736,0.30506,3278.5,3278.4,40.8]
[1736530827341,3.2078,3278.6,3277.7,4.0854]
[1736530827549,0.4323,3278.4,3277.7,3.6424]
[1736530827748,0.3051,3278.1,3277.9,0.30511]
[1736530827940,0.30511,3277.9,3277.8,40.8]
[1736530828138,0.30511,3277.9,3277.7,0.30513]
[1736530828642,0.30511,3277.9,3277.8,40.8]
[1736530829845,0.30514,3277.7,3277.5,0.30515]
[1736530830046,0.30514,3277.6,3277.3,3.2078]
[1736530830247,0.476,3278.0,3277.4,41.10516]
[1736530830439,0.30515,3277.5,3277.4,41.10516]
[1736530830747,0.30515,3277.6,3277.4,41.10516]
[1736530831241,0.30515,3277.6,3276.7,3.6241491]
[1736530831242,3.2078,3277.7,3276.4,3.2078]
[1736530831441,2.11182,3277.8,3276.4,3.2078]
[1736530831442,3.51299,3277.2,3277.1,0.30519]
[1736530831643,0.30518,3277.3,3277.2,0.30518]
[1736530831843,0.4388,3277.5,3276.9,0.76303]
[1736530832142,1.23244,3278.2,3278.0,0.3051]
[1736530832143,0.3051,3278.1,3278.0,0.3051]
[1736530832350,3.2078,3278.2,3278.1,0.3051]
[1736530832542,0.30512,3277.9,3277.6,3.2078]
[1736530832747,3.2078,3278.2,3277.6,3.2078]
[1736530833045,0.30513,3277.8,3277.7,0.30513]
[1736530833241,3.2078,3278.2,3277.6,3.2078]
[1736530833448,3.2078,3278.2,3278.1,0.3051]
[1736530833949,0.74387,3278.4,3277.8,0.76281]
[1736530834162,0.4388,3278.4,3278.2,0.30508]
[1736530834348,0.74387,3278.4,3278.2,0.30508]
[1736530834842,0.4388,3278.4,3277.6,3.2078]
[1736530835046,3.2078,3278.8,3278.0,3.2078]
[1736530835242,3.51284,3278.8,3278.6,0.30504]
[1736530835447,0.30504,3278.7,3278.6,0.30504]
[1736530835647,3.2078,3278.8,3278.7,0.30504]
[1736530836145,3.2078,3279.4,3279.3,0.30498]
[1736530836341,0.30498,3279.4,3279.2,0.30499]
[1736530836550,0.4327,3279.6,3279.2,0.30499]
[1736530836853,0.30498,3279.4,3279.2,0.30499]
[1736530837054,0.305,3279.2,3279.0,0.305]
[1736530837346,3.2078,3279.5,3278.7,3.2078]
[1736530837546,3.2078,3279.5,3278.9,0.30502]
[1736530837547,0.305,3279.1,3278.9,0.30502]
[1736530838149,0.305,3279.1,3279.0,0.30501]
[1736530838353,0.30499,3279.3,3279.1,0.305]
[1736530838555,3.2078,3279.5,3278.7,3.2078]
[1736530838751,0.305,3279.1,3278.9,0.30501]
[1736530838957,0.305,3279.1,3278.8,0.30503]
[1736530839253,0.305,3279.1,3278.9,0.30502]
[1736530839847,3.2078,3279.5,3278.7,3.2078]
[1736530840045,6.0688891,3279.5,3278.7,3.2078]
[1736530840250,6.0688891,3279.5,3278.5,0.432]
[1736530840251,0.30506,3278.6,3278.4,0.30506]
[1736530840549,0.30503,3278.8,3278.6,0.30504]
[1736530840749,0.30503,3278.8,3278.3,3.2078]
[1736530840750,3.2078,3279.1,3278.3,3.2078]
[1736530840956,3.2078,3279.1,3278.2,0.30508]
[1736530840957,0.30507,3278.4,3278.2,0.30508]
[1736530841150,3.2078,3278.6,3278.2,0.30508]
[1736530841151,3.2078,3278.6,3278.5,0.30506]
[1736530841354,3.2078,3278.6,3277.9,3.2078]
[1736530841554,0.30508,3278.3,3278.1,0.30509]
[1736530841754,0.30508,3278.3,3277.9,44.0078]
[1736530841755,0.4647,3278.5,3277.9,44.0078]
[1736530841955,0.30507,3278.4,3278.2,0.30508]
[1736530842157,0.4647,3278.5,3278.2,0.30508]
[1736530842458,0.30507,3278.4,3278.2,0.30508]
[1736530842762,0.4647,3278.5,3277.9,44.0078]
[1736530843253,0.3051,3278.0,3277.9,44.0078]
[1736530843456,0.76275,3278.1,3277.2,0.30517]
[1736530843647,0.76275,3278.1,3277.1,0.30518]
[1736530843648,3.97062,3277.8,3277.1,0.30518]
[1736530843846,0.30517,3277.3,3277.2,41.10518]
[1736530844045,0.30517,3277.3,3277.2,40.8]
[1736530844460,0.30517,3277.4,3277.2,41.10517]
[1736530845560,0.30517,3277.3,3277.2,41.10518]
[1736530845857,0.4647,3277.7,3277.2,41.10518]
[1736530846058,0.4647,3277.7,3277.3,0.30517]
[1736530846248,0.4647,3277.7,3277.2,40.8]
[1736530846452,0.76984,3277.7,3277.5,0.30515]
[1736530846653,0.30515,3277.6,3277.4,0.30516]
[1736530847054,3.6437,3278.3,3277.3,3.2078]
[1736530847263,0.30508,3278.3,3278.2,0.30509]
[1736530847452,0.4452,3278.7,3278.3,0.30508]
[1736530847753,0.30506,3278.5,3278.3,0.30507]
[1736530848063,0.30506,3278.5,3278.4,40.8]
[1736530849250,3.3062891,3278.7,3277.8,0.4382]
[1736530849457,0.76271,3278.3,3277.3,3.6787]
[1736530849657,0.30516,3277.5,3277.4,41.10516]
[1736530849956,0.30515,3277.5,3277.4,40.8]
[1736530850959,0.30513,3277.7,3277.6,0.30514]
[1736530851157,0.4701,3277.9,3277.6,0.30514]
[1736530851361,0.4701,3277.9,3277.8,0.30512]
[1736530851560,0.30514,3277.7,3277.5,0.30515]
[1736530851759,0.30515,3277.5,3277.4,40.8]
[1736530851960,0.4701,3277.9,3277.4,40.8]
[1736530852161,0.30513,3277.8,3277.6,0.30513]
[1736530852462,0.30513,3277.7,3277.6,0.30513]
[1736530852760,0.30515,3277.5,3277.4,40.8]
[1736530859060,0.4787,3277.6,3276.8,3.94942]
[1736530859264,0.30521,3276.9,3276.8,3.2078]
[1736530859468,0.76305,3276.9,3276.2,0.30527]
[1736530859763,0.30525,3276.4,3276.3,40.8]
[1736530860067,3.2078,3276.8,3276.7,0.30523]
[1736530860368,0.30519,3277.1,3277.0,0.30519]
[1736530860569,0.4399,3277.3,3276.8,0.30521]
[1736530860771,0.30522,3276.8,3276.7,0.30522]
[1736530861269,0.74507,3277.3,3277.2,0.30518]
[1736530861566,0.4399,3277.3,3277.2,0.30518]
[1736530861872,0.30517,3277.3,3277.2,0.30518]
[1736530862169,0.30517,3277.3,3277.2,40.8]
[1736530862766,0.30523,3276.7,3276.6,0.30523]
[1736530863069,0.30527,3276.2,3276.1,4.46648]
[1736530863265,0.30527,3276.2,3276.1,40.8]
[1736530863466,3.2078,3276.5,3275.8,0.30531]
[1736530863467,6.83300914,3276.5,3275.8,0.30531]
[1736530863664,0.30531,3275.9,3275.7,0.30531]
[1736530863864,0.30531,3275.9,3275.6,3.2078]
[1736530863865,0.30531,3275.9,3275.8,0.30531]
[1736530864172,0.30531,3275.9,3275.8,40.8]
[1736530864774,0.7632,3276.2,3275.4,0.30534]
[1736530864775,0.30534,3275.5,3275.4,0.30534]
[1736530864975,0.30536,3275.4,3275.2,3.2078]
[1736530865181,0.30539,3274.9,3274.8,3.5132]
[1736530865367,0.30538,3275.1,3274.9,0.30539]
[1736530865572,0.30538,3275.0,3274.9,0.30539]
[1736530865773,0.30538,3275.0,3274.8,40.8]
[1736530865774,0.30537,3275.2,3275.0,0.30538]
[1736530865982,0.4582,3275.6,3274.8,40.8]
[1736530866175,0.30535,3275.4,3275.2,0.30536]
[1736530866980,0.4582,3275.6,3274.9,0.8834]
[1736530867171,0.3054,3274.8,3274.7,3.2078]
[1736530867378,3.2078,3274.9,3274.2,3.2078]
[1736530867574,0.4425,3274.8,3274.3,40.8]
[1736530867780,3.5132,3274.9,3274.7,0.30541]
[1736530868181,3.5132,3274.9,3274.3,40.8]
[1736530868182,1.349,3275.2,3274.4,0.76361]
[1736530868384,0.30542,3274.7,3274.5,0.30543]
[1736530868784,3.97128,3275.0,3274.3,41.10545]
[1736530868978,0.30544,3274.4,3274.3,40.8]
[1736530869477,0.30543,3274.6,3274.3,40.8]
[1736530869676,0.30543,3274.6,3274.4,0.30543]
[1736530869978,0.469,3274.8,3274.3,40.8]
[1736530870386,3.51319,3275.0,3274.8,0.3054]
[1736530870585,0.3054,3274.9,3274.3,40.8]
[1736530870885,3.51319,3275.0,3274.8,0.3054]
[1736530871085,3.2078,3275.0,3274.9,0.30539]
[1736530871272,3.51319,3275.0,3274.3,0.4594]
[1736530871478,3.51319,3275.0,3274.8,0.3054]
[1736530871783,3.2078,3275.0,3274.9,41.10539]
[1736530872181,3.51318,3275.0,3274.9,40.8]
[1736530872579,0.30538,3275.0,3274.9,40.8]
[1736530872777,4.1193,3275.4,3274.9,40.8]
[1736530872980,0.30538,3275.0,3274.9,40.8]
[1736530874282,0.30536,3275.3,3274.9,41.10539]
[1736530874481,0.30537,3275.2,3275.0,0.30538]
[1736530874874,0.30538,3275.1,3274.9,40.8]
[1736530875187,0.30538,3275.0,3274.9,40.8]
[1736530876078,5.4683,3275.4,3274.9,40.8]
[1736530876280,4.1193,3275.4,3274.9,40.8]
[1736530876485,3.95565,3275.4,3274.9,40.8]
[1736530876685,3.6503,3275.4,3274.9,40.8]
[1736530876887,0.30538,3275.0,3274.9,40.8]
[1736530877081,0.4529,3275.3,3274.9,40.8]
[1736530877282,3.6503,3275.4,3274.9,40.8]
[1736530877686,0.30536,3275.3,3275.1,0.30537]
[1736530878389,3.6503,3275.4,3274.9,40.8]
[1736530878586,0.30536,3275.3,3275.1,0.30537]
[1736530879092,0.76329,3275.8,3275.7,0.30532]
[1736530879093,3.2078,3275.8,3275.7,0.30532]
[1736530879388,0.30529,3276.1,3275.5,0.30534]
[1736530879592,0.3053,3275.9,3275.8,0.3053]
[1736530879790,0.3053,3275.9,3275.4,3.97117]
[1736530879791,3.2078,3276.2,3275.4,3.97117]
[1736530880091,0.3053,3275.9,3275.8,0.30531]
[1736530880389,0.30529,3276.0,3275.9,0.3053]
[1736530880890,0.30529,3276.0,3275.3,2.86207914]
[1736530880891,3.2078,3276.2,3276.1,0.30528]
[1736530881077,3.2078,3276.2,3275.8,3.2078]
[1736530881078,0.479,3276.7,3275.9,0.76326]
[1736530881278,0.479,3276.7,3276.1,0.30528]
[1736530881683,0.479,3276.7,3276.2,40.8]
[1736530881990,0.30526,3276.3,3276.2,40.8]
[1736530882786,3.2078,3276.4,3275.3,6.83325914]
[1736530883090,3.2078,3276.4,3276.3,0.30526]
[1736530883293,0.78423,3276.7,3276.5,0.30524]
[1736530883494,0.479,3276.7,3276.6,0.30524]
[1736530883689,0.78423,3276.7,3276.5,0.30524]
[1736530884486,0.78423,3276.7,3276.2,3.2078]
[1736530884487,0.30524,3276.6,3276.4,0.30525]
[1736530884988,0.479,3276.7,3276.6,0.30524]
[1736530885187,1.65421,3276.9,3276.7,0.30522]
[1736530885393,0.30521,3276.9,3276.8,0.30522]
[1736530885593,3.2078,3277.1,3276.5,0.30524]
[1736530885889,3.2078,3277.1,3276.3,0.76317]
[1736530886187,0.921,3277.4,3277.3,0.30517]
[1736530886584,1.22616,3277.4,3277.3,0.30517]
[1736530886790,0.921,3277.4,3277.0,0.3052]
[1736530886986,0.921,3277.4,3276.8,0.4449]
[1736530887195,0.921,3277.4,3276.9,0.3052]
[1736530887386,0.30519,3277.1,3276.9,0.3052]
[1736530887588,0.921,3277.4,3276.8,0.4449]
[1736530887789,0.30518,3277.3,3276.8,0.4449]
[1736530887988,0.30518,3277.2,3277.0,0.30519]
[1736530888190,0.921,3277.4,3276.8,0.4449]
[1736530888399,0.30518,3277.2,3277.0,0.30519]
[1736530888594,0.30517,3277.3,3277.1,0.30519]
[1736530888891,0.921,3277.4,3276.8,0.4449]
[1736530889094,0.30519,3277.1,3276.9,0.3052]
[1736530889497,0.30521,3276.9,3276.7,0.30523]
[1736530889696,0.30521,3276.9,3276.8,0.30522]
[1736530890001,3.2078,3277.1,3276.6,3.2078]
[1736530890301,0.921,3277.4,3276.6,3.2078]
[1736530890500,0.4505,3277.4,3277.3,0.30517]
[1736530890800,3.2078,3277.5,3277.4,0.30516]
[1736530890996,3.6741,3278.0,3277.0,3.2078]
[1736530891195,3.2078,3278.0,3277.9,0.30511]
[1736530891400,3.2078,3278.4,3278.2,0.30508]
[1736530891897,0.4663,3278.5,3278.4,0.30507]
[1736530892097,0.30501,3279.0,3278.7,0.30503]
[1736530892294,0.77129,3279.3,3279.0,0.30501]
[1736530892494,0.77129,3279.3,3278.4,40.8]
[1736530892495,0.4663,3279.3,3278.6,3.2078]
[1736530892696,13.06676073,3279.7,3279.1,0.305]
[1736530892901,13.06676073,3279.7,3279.4,0.30497]
[1736530893091,0.30496,3279.6,3279.0,3.2078]
[1736530893704,13.37171073,3279.7,3279.4,0.30497]
[1736530894499,13.06676073,3279.7,3279.0,3.2078]
[1736530894699,0.30499,3279.3,3279.0,3.5128]
[1736530894901,3.2078,3279.6,3279.0,3.2078]
[1736530895199,3.2078,3279.6,3277.9,0.76277]
[1736530895200,0.30503,3278.9,3278.6,0.30505]
[1736530895402,3.2078,3279.1,3278.4,0.30506]
[1736530895595,3.2078,3279.1,3278.3,3.6677]
[1736530895596,0.30504,3278.8,3278.5,0.30505]
[1736530895796,3.2078,3279.1,3278.3,3.6677]
[1736530895996,0.30503,3278.9,3278.3,3.6677]
[1736530896199,0.30503,3278.8,3278.4,0.30507]
[1736530896401,0.30503,3278.9,3278.6,0.30504]
[1736530897202,3.2078,3279.1,3278.3,3.6677]
[1736530897503,0.4451,3279.5,3278.7,3.2078]
[1736530897802,0.4451,3279.5,3278.3,0.4599]
[1736530897803,3.2078,3279.8,3279.1,3.2078]
[1736530898005,0.30495,3279.7,3279.4,0.30497]
[1736530898205,0.30497,3279.5,3279.2,0.30499]
[1736530898494,0.30497,3279.5,3279.1,3.2078]
[1736530898695,3.2078,3279.8,3279.6,0.30495]
[1736530899000,3.2078,3279.8,3279.7,0.30495]
[1736530899203,3.2078,3280.2,3279.4,0.76244]
[1736530899502,3.51271,3280.2,3279.6,3.2078]
[1736530899703,3.51271,3280.2,3280.0,0.30492]
[1736530899900,3.2078,3280.2,3279.7,40.8]
[1736530900394,0.4331,3280.7,3279.7,40.8]
[1736530900395,3.6409,3280.7,3279.7,40.8]
[1736530901096,3.2078,3280.7,3280.2,0.30489]
[1736530901302,0.30489,3280.4,3279.7,43.66207914]
[1736530901700,0.30489,3280.4,3280.1,0.30491]
[1736530901903,3.2078,3280.7,3279.7,40.8]
[1736530902099,0.30492,3280.1,3279.8,0.30493]
[1736530902305,3.2078,3280.7,3279.7,40.8]
[1736530902603,3.2078,3280.7,3279.7,0.30494]
[1736530902799,0.30492,3280.0,3279.5,4.1505]
[1736530903006,3.2078,3280.3,3279.6,40.8]
[1736530903300,0.30492,3280.0,3279.7,0.30494]
[1736530903502,0.3049,3280.2,3279.9,0.30492]
[1736530903703,1.06703,3280.6,3279.8,0.30493]
[1736530903904,0.30491,3280.1,3279.9,0.30492]
[1736530904199,0.30493,3279.9,3279.7,0.30494]
[1736530904406,0.30494,3279.8,3279.6,41.10495]
[1736530904607,0.30494,3279.8,3279.6,40.8]
[1736530904900,3.51273,3279.9,3279.6,41.10495]
[1736530905107,0.30492,3280.1,3279.6,40.8]
[1736530905406,0.30493,3279.9,3279.7,0.30494]
[1736530905703,0.30491,3280.1,3279.6,40.8]
[1736530905903,1.8235,3280.2,3279.6,40.8]
[1736530906103,0.30493,3279.9,3279.7,0.30494]
[1736530906406,0.30494,3279.8,3279.6,41.10495]
[1736530906602,0.30493,3279.9,3279.7,0.30494]
[1736530906804,0.30491,3280.1,3279.9,0.30492]
[1736530907003,1.8235,3280.2,3279.6,40.8]
[1736530907399,3.2078,3280.3,3279.6,41.5624]
[1736530907706,3.6514,3280.8,3279.8,0.76235]
[1736530907898,0.30489,3280.4,3280.2,0.30373226]
[1736530908100,0.3049,3280.3,3280.1,0.30491]
[1736530908406,0.30488,3280.4,3279.8,0.30494]
[1736530908606,0.30485,3280.7,3280.2,40.8]
[1736530908809,0.30489,3280.4,3280.2,41.1049]
[1736530909906,3.6514,3280.8,3280.2,41.1049]
[1736530910206,0.30489,3280.3,3280.2,40.8]
[1736530912105,3.2078,3280.8,3280.2,40.8]
[1736530912300,3.2078,3280.8,3280.7,0.30485]
[1736530912503,3.2078,3280.8,3280.2,41.2484]
[1736530912906,0.30486,3280.7,3280.5,0.30487]
[1736530913205,3.2078,3280.8,3280.2,42.01065]
[1736530913408,3.51265,3280.8,3280.6,0.30486]
[1736530913803,3.2078,3280.8,3280.2,41.2484]
[1736530914104,0.30488,3280.5,3280.3,0.30489]
[1736530914297,0.30489,3280.3,3280.2,41.1049]
[1736530914502,0.4443,3280.7,3280.4,0.30488]
[1736530914703,0.30487,3280.5,3280.4,0.30488]
[1736530914909,0.4443,3280.7,3280.2,40.8]
[1736530915312,0.4443,3280.7,3280.2,41.1049]
[1736530915507,0.4443,3280.7,3280.2,40.8]
[1736530915805,0.30487,3280.5,3280.2,40.8]
[1736530916007,0.4443,3280.7,3280.2,40.8]
[1736530916206,0.30489,3280.3,3280.2,40.8]
[1736530917209,0.30488,3280.4,3280.3,0.30489]
[1736530917418,0.30489,3280.4,3280.2,41.10489]
[1736530917610,3.2078,3280.8,3280.2,40.8]
[1736530917812,3.2078,3280.8,3280.6,0.30486]
[1736530918320,3.2078,3280.8,3280.3,0.30488]
[1736530918505,0.30488,3280.4,3280.3,0.30488]
[1736530918708,0.30486,3280.7,3280.5,0.30487]
[1736530918906,0.30486,3280.7,3280.6,0.30486]
[1736530919110,0.30488,3280.5,3280.3,0.30489]
[1736530919309,0.30489,3280.3,3280.2,40.8]
[1736530920813,0.30488,3280.4,3280.2,40.8]
[1736530921009,1.23664,3280.7,3280.2,40.8]
[1736530921215,0.30489,3280.3,3280.2,40.8]
[1736530921616,0.30489,3280.3,3280.2,41.1049]
[1736530921812,0.30488,3280.5,3280.2,40.8]
[1736530922013,0.4745,3280.7,3280.2,40.8]
[1736530922215,0.30486,3280.7,3280.6,0.30486]
[1736530922817,3.2078,3280.8,3280.2,41.56225]
[1736530923023,0.30486,3280.6,3280.3,0.30489]
[1736530923209,3.2078,3280.8,3280.2,40.8]
[1736530923519,3.2078,3280.8,3280.5,0.30487]
[1736530923520,0.30487,3280.6,3280.5,0.30487]
[1736530924112,0.30487,3280.5,3280.4,0.30488]
[1736530924820,0.30487,3280.6,3280.5,0.30487]
[1736530925020,0.30489,3280.4,3280.3,0.30489]
[1736530925215,0.30489,3280.3,3280.2,41.1049]
[1736530925425,0.30489,3280.3,3280.2,40.8]
[1736530925610,0.30489,3280.3,3279.9,3.2078]
[1736530925611,0.30492,3280.0,3279.9,3.2078]
[1736530926118,0.30489,3280.3,3280.2,0.30489]
[1736530926319,0.30488,3280.4,3280.3,0.30489]
[1736530926621,0.30486,3280.7,3280.6,0.30486]
[1736530927013,3.51265,3280.8,3280.7,0.30485]
[1736530927210,0.30486,3280.6,3280.2,0.3049]
[1736530927414,0.30486,3280.6,3280.5,0.30487]
[1736530927616,3.2078,3280.8,3280.1,0.76226]
[1736530927809,3.2078,3280.8,3279.9,45.69092]
[1736530928021,3.96993,3280.8,3279.9,44.4674]
[1736530928218,0.30491,3280.2,3280.1,0.3049]
[1736530928517,0.3049,3280.3,3279.9,44.4674]
[1736530928711,0.30492,3280.0,3279.9,44.77232]
[1736530929023,0.4597,3280.5,3280.2,0.3049]
[1736530929215,0.3049,3280.3,3280.2,0.3049]
[1736530929615,0.4597,3280.5,3280.1,0.30491]
[1736530929813,0.30491,3280.2,3280.1,0.30491]
[1736530930219,0.30487,3280.6,3280.5,0.30487]
[1736530931120,0.30486,3280.7,3280.5,0.30487]
[1736530931319,3.2078,3280.8,3280.1,0.76228]
[1736530931713,0.30486,3280.6,3280.1,0.76228]
[1736530931919,0.30486,3280.6,3280.5,0.30487]
[1736530932418,3.2078,3280.8,3280.7,0.30485]
[1736530932821,0.30484,3280.9,3280.8,0.30484]
[1736530933221,3.2078,3281.3,3280.5,0.434]
[1736530933424,0.30484,3280.9,3280.8,0.30484]
[1736530934229,0.76203,3281.2,3280.5,0.434]
[1736530934527,3.2078,3281.3,3280.5,0.434]
[1736530934726,3.2078,3281.3,3280.7,3.2078]
[1736530934928,3.5126,3281.3,3281.2,0.30481]
[1736530935127,0.8748,3281.7,3281.2,40.8]
[1736530935326,4.0998,3282.3,3281.5,3.2078]
[1736530936122,0.30474,3282.0,3281.8,0.30475]
[1736530936828,0.30474,3282.0,3281.6,0.4726]
[1736530936829,0.30475,3281.8,3281.6,0.77736]
[1736530937025,0.30478,3281.5,3281.3,0.77239]
[1736530937225,1.06664,3281.8,3281.2,41.10481]
[1736530937423,0.30478,3281.5,3281.3,0.30479]
[1736530938331,0.30477,3281.7,3281.5,0.30478]
[1736530938527,0.30477,3281.6,3281.4,0.30478]
[1736530938833,0.30478,3281.5,3281.3,0.30479]
[1736530939327,3.2078,3281.9,3281.1,3.2078]
[1736530939636,3.2078,3281.9,3281.8,0.30475]
[1736530939829,3.51254,3281.9,3281.8,0.30475]
[1736530940125,0.456,3282.5,3282.0,0.30473]
[1736530940126,0.30471,3282.2,3282.0,0.30473]
[1736530940631,0.30473,3282.0,3281.6,0.4441]
[1736530940926,0.7618,3282.2,3281.5,3.6613]
[1736530941130,0.30477,3281.7,3281.5,0.75828]
[1736530941328,4.0998,3282.3,3281.2,41.2441]
[1736530941531,0.30479,3281.4,3281.2,41.2441]
[1736530941829,3.2078,3281.9,3281.3,0.30479]
[1736530941830,0.30478,3281.5,3281.3,0.30479]
[1736530942030,0.30477,3281.7,3281.5,0.30477]
[1736530942328,3.2078,3281.9,3281.5,0.30477]
[1736530942329,0.30477,3281.6,3281.5,0.30477]
[1736530942533,0.76182,3282.1,3281.2,41.2441]
[1736530942742,0.30478,3281.5,3281.4,0.30479]
[1736530943031,0.76182,3282.1,3281.2,41.2441]
[1736530943234,4.0998,3282.3,3281.2,41.2441]
[1736530943235,4.86158,3282.3,3281.2,41.2441]
[1736530943531,0.76184,3282.0,3281.4,0.30478]
[1736530943733,0.7618,3282.2,3281.2,41.2441]
[1736530944030,0.30473,3282.0,3281.9,0.30474]
[1736530944233,0.30472,3282.2,3282.0,0.30473]
[1736530944434,0.30472,3282.1,3282.0,0.30473]
[1736530944631,3.6598,3282.3,3281.6,0.4361]
[1736530944832,0.30475,3281.8,3281.7,0.30476]
[1736530945032,3.6598,3282.3,3281.6,0.4361]
[1736530945333,0.30475,3281.9,3281.7,0.30476]
[1736530945529,3.6598,3282.3,3281.7,0.30476]
[1736530945731,0.76179,3282.2,3281.6,0.4361]
[1736530945934,0.30477,3281.6,3281.5,3.2078]
[1736530946230,1.22809,3282.2,3281.6,0.30476]
[1736530946430,0.76182,3282.1,3281.3,0.30479]
[1736530946632,0.30478,3281.5,3281.4,0.30479]
[1736530946830,0.76182,3282.1,3281.2,41.2441]
[1736530947127,0.76182,3282.1,3281.4,0.30478]
[1736530947329,0.76182,3282.1,3281.2,41.2441]
[1736530947533,0.3048,3281.3,3281.2,40.8]
[1736530947734,3.96968,3281.9,3281.2,40.8]
[1736530948041,0.3048,3281.3,3281.2,41.10481]
[1736530948234,0.30476,3281.7,3281.3,0.30479]
[1736530948433,0.30479,3281.4,3281.3,0.30479]
[1736530949137,0.30477,3281.6,3281.5,0.30478]
[1736530949734,0.436,3281.8,3281.3,0.4399]
[1736530950042,0.30478,3281.6,3281.5,0.30477]
[1736530950243,0.30476,3281.8,3281.7,0.30476]
[1736530950845,0.9424,3282.2,3281.5,0.76196]
[1736530950846,0.4761,3282.2,3281.5,0.76196]
[1736530951247,0.30475,3281.9,3281.8,0.30474]
[1736530951542,0.30474,3282.0,3281.9,0.30473]
[1736530951948,0.4761,3282.2,3281.5,0.76196]
[1736530952350,0.30474,3282.0,3281.9,0.30473]
[1736530952550,0.30474,3282.0,3281.5,0.76196]
[1736530952551,0.4761,3282.2,3281.4,2.86207914]
[1736530952949,0.30475,3281.9,3281.8,0.30474]
[1736530954151,0.30474,3282.0,3281.9,0.30473]
[1736530954353,0.30475,3281.9,3281.8,0.30475]
[1736530954655,0.30476,3281.8,3281.7,0.30476]